Cogmind - Beta 14 @@@ ROGUE MODE // 2024.08.17 @ 19:43:17 Player: Soulsphere Result: Destroyed by B-75 Beast with Magnetic Acceleration Cannon Performance ------------- Evolutions (2) 1000 Regions Visited (4) 800 Robots Destroyed (101) 505 Value Destroyed (2883) 2883 Prototype IDs (8) 160 Alien Tech Used (0) 0 Bonus (290) 290 TOTAL SCORE: 5638 Bonus ------- High Alert Combat Kills 90 Entered Garrisons 200 Cogmind --------- Core Integrity 0/550 Matter 300/300 Energy 160/160 System Corruption 0% Temperature Cool (12) Movement Walking (330) Ox3 Location -8/Garrison Parts ------- > --- POWER (1) -------- Light Nuclear Core > --- PROPULSION (4) --- Aluminum Leg > --- UTILITY (4) ------ Improved Heat Sink Improved Heat Sink Large Storage Unit Hacking Suite > --- WEAPON (2) ------- Gatling Laser > --- INVENTORY (15) --- Light Ion Engine Carbon-fiber Leg Improved Flight Unit Improved Flight Unit Large Storage Unit Transmission Jammer Hacking Suite Hacking Suite Relay Coupler [Swarmer] (32) Relay Coupler [Grunt] (28) Relay Coupler [Specialist] (17) Improved Grenade Launcher Katana Peak State ------------ > --- POWER ------------ Cooled Ion Engine > --- PROPULSION ------- Titanium Leg Titanium Leg Titanium Leg Titanium Leg > --- UTILITY ---------- Cooling System Large Storage Unit Transmission Jammer Hardened Light Armor Plating > --- WEAPON ----------- Field Laser Gatling Laser > --- INVENTORY -------- Improved Flight Unit Improved Flight Unit Improved Flight Unit Large Storage Unit Transmission Jammer Hacking Suite Hacking Suite Hacking Suite Gatling Laser Improved Grenade Launcher Katana [Rating: 34] Favorites ----------- Power Improved Ion Engine Engine Improved Ion Engine Power Core Light Nuclear Core Propulsion Aluminum Leg Treads Light Treads Leg Aluminum Leg Wheel Compact Wheel Utility Large Storage Unit Device Sensor Array Storage Large Storage Unit Processor Improved Signal Interpreter Hackware Hacking Suite Protection Hardened Light Armor Plating Weapon Field Laser Energy Gun Field Laser Ballistic Gun Light Assault Rifle Ballistic Cannon Improved Light Cannon Launcher Improved Grenade Launcher Build | -11 -10 -9 -8 -8 ------- Run | Yrd Mat Mat Mat Gar Slots Evolved 4 | . . 2 2 . Power . | . . . . . Propulsion 2 | . . 2 . . Utility 2 | . . . 2 . Weapon . | . . . . . Parts Attached 84 | 6 12 29 26 11 Power 9 | 1 2 3 2 1 Engine 7 | 1 1 3 2 . Core 2 | . 1 . . 1 Reactor . | . . . . . Propulsion 33 | 2 6 16 7 2 Treads 2 | 2 . . . . Leg 29 | . 4 16 7 2 Wheel 2 | . 2 . . . Hover . | . . . . . Flight . | . . . . . Utility 19 | 1 3 4 9 2 Device 11 | . 2 4 3 2 Storage 2 | 1 1 . . . Processor 3 | . . . 3 . Hackware 1 | . . . 1 . Protection 2 | . . . 2 . Artifact . | . . . . . Weapon 23 | 2 1 6 8 6 Energy Gun 16 | . . 4 8 4 Energy Cannon . | . . . . . Ballistic Gun 4 | 2 1 1 . . Ballistic Cannon 1 | . . 1 . . Launcher 2 | . . . . 2 Special Weapon . | . . . . . Impact Weapon . | . . . . . Slashing Weapon . | . . . . . Piercing Weapon . | . . . . . Special Melee Weapon . | . . . . . Unidentified Prototypes . | . . . . . Parts Lost 19 | . 2 5 5 7 Power 3 | . . 1 1 1 Propulsion 10 | . 2 3 2 3 Utility 3 | . . . 2 1 Weapon 3 | . . 1 . 2 Highest Loss Streak 3 | . 2 2 2 3 To Critical Strikes . | . . . . . Average Slot Usage (%) 97 | . 97 97 96 95 Engine 8 | . 6 10 9 1 Core 2 | . 7 . . 6 Treads 1 | . 6 . . . Leg 33 | . 17 42 35 34 Device 11 | . 12 11 9 15 Storage 11 | . 14 11 9 9 Processor 1 | . . . 6 . Hackware 1 | . . . . 9 Protection 2 | . . . 8 . Energy Gun 8 | . . 6 17 16 Ballistic Gun 11 | . 28 10 . . Ballistic Cannon 1 | . . 4 . . Peak Build Rating 34 | 6 10 17 34 32 Average Rating 17 | 4 8 13 26 30 On Entrance 12 | . 6 10 17 28 Naked Turns . | . . . . . Heaviest Build 43 | 13 29 35 43 37 Greatest Support 68 | 40 40 43 68 54 Greatest Overweight (x) 3 | . 2 1 3 3 Average Overweight (x) . | . . . . . Largest Inventory Capacity 15 | 8 15 15 15 15 Average Capacity 14 | 6 12 15 15 15 Most Carried 15 | 7 15 15 15 15 Average Carried 12 | 4 10 14 13 14 Final Capacity 15 | 8 15 15 15 15 Final Carried 15 | 5 15 15 14 13 Class Distribution -------------------- 66% | Scavenger-Mutant 33% | Mutant Dominant Class ---------------- Mutant | -10/Materials Scavenger-Mutant | -9/Materials Mutant | -8/Materials Scavenger-Mutant | -8/Garrison Resources | -11 -10 -9 -8 -8 ----------- Run | Yrd Mat Mat Mat Gar Matter Collected 1864 | 257 439 542 497 129 Remotely . | . . . . . Salvage Created 3360 | 51 597 1310 993 409 Parts 227 | . 43 97 53 34 Haulers Intercepted 8 | . 1 5 2 . Recyclers Shooed 7 | 2 2 1 2 . Parts Field Recycled . | . . . . . Retrieved Matter . | . . . . . Parts Self-Destructed . | . . . . . Prevented . | . . . . . Kills | -11 -10 -9 -8 -8 ------- Run | Yrd Mat Mat Mat Gar Combat Hostiles Destroyed 77 | . 15 24 17 21 Guns 71 | . 15 23 16 17 Cannons 1 | . . 1 . . AOE 4 | . . . . 4 Classes Destroyed 11 | 1 5 2 2 1 Worker 2 | . . . 2 . Hauler 8 | . 1 5 2 . Recycler 3 | 1 1 1 . . Operator 4 | . 1 2 1 . Watcher 7 | . 3 2 2 . Swarmer 30 | . 9 6 1 14 Cutter 2 | . . . . 2 Grunt 27 | . 6 8 10 3 Brawler 2 | . . . 2 . Duelist 2 | . . 1 1 . Sentry 14 | . . 9 3 2 Best Kill Streak 6 | 1 4 4 4 6 Combat Bots Only 6 | . 4 4 4 6 Max Kills in Single Turn 3 | 1 2 2 2 3 Gunslinging 1 | . 1 1 . . Exploded 3 | . . . . 3 Melee . | . . . . . Uniques/NPCs Destroyed . | . . . . . Combat | -11 -10 -9 -8 -8 -------- Run | Yrd Mat Mat Mat Gar Hostile Shots Fired 386 | . 89 115 91 91 Missed 94 | . 21 28 17 28 Damage Taken 4039 | . 650 1092 1370 927 Core 924 | . 176 193 353 202 Absorbed by Shields . | . . . . . Regen/Repaired (Parts) 314 | . . 240 74 . Core Remaining (%) 60 | 100 29 51 . . Volleys Fired 296 | 7 74 99 75 41 Largest 2 | 2 2 2 2 2 Hottest 160 | 40 40 126 160 160 Shots Fired 575 | 14 149 198 138 76 Gun 546 | 14 149 172 138 73 Cannon 26 | . . 26 . . Launcher 3 | . . . . 3 Special . | . . . . . Kinetic 288 | 14 149 125 . . Thermal 284 | . . 73 138 73 Explosive 3 | . . . . 3 Electromagnetic . | . . . . . Robot Hit Streak 16 | 3 10 12 14 16 Robot Miss Streak 7 | 4 7 4 6 6 Penetration Max . | . . . . . Secondary Targets 8 | . 3 3 2 . Max Gunslinging Chain 1 | . 1 1 1 . Shots Hit Robots 370 | 8 90 127 98 47 Core Hits 189 | 2 37 59 54 37 Critical Kills 1 | . 1 . . . Critical Parts Destroyed . | . . . . . Critical Strikes 6 | . 1 2 3 . Burn 4 | . . 1 3 . Destroy 1 | . 1 . . . Blast 1 | . . 1 . . Melee Attacks . | . . . . . Impact . | . . . . . Slashing . | . . . . . Piercing . | . . . . . Sneak Attacks . | . . . . . Combat Hostiles . | . . . . . Follow-up Attacks . | . . . . . Damage Inflicted 5599 | 108 917 1615 1881 1078 Guns 5099 | 108 917 1393 1878 803 Cannons 222 | . . 222 . . Explosions 275 | . . . . 275 Melee . | . . . . . Ramming 3 | . . . 3 . Kinetic 2050 | 108 917 1025 . . Thermal 3271 | . . 590 1878 803 Explosive 275 | . . . . 275 Electromagnetic . | . . . . . Impact . | . . . . . Slashing . | . . . . . Piercing . | . . . . . Highest Corruption 3 | . 3 . . . Average Corruption 2 | . 2 . . . Corruption Purged . | . . . . . Corruption Blocked . | . . . . . Effects 16 | . 16 . . . Message Errors 4 | . 4 . . . Matter Fused 6 | . 6 . . . Heat Flow Errors 2 | . 2 . . . Data Loss (minor) 2 | . 2 . . . Data Loss (major) 1 | . 1 . . . Misfires 1 | . 1 . . . Overload Shots . | . . . . . Overflow Damage 6 | . . . . 6 Projectiles . | . . . . . Explosions 6 | . . . . 6 Melee . | . . . . . Knockbacks 1 | . . 1 . . Impact . | . . . . . Kinetic 1 | . . 1 . . Secondary . | . . . . . Self-Inflicted Damage . | . . . . . Shots . | . . . . . Rammed . | . . . . . Targets Rammed 3 | . . . 3 . Kicked 3 | . . . 3 . Crushed . | . . . . . Highest Temperature 768 | . 252 116 768 256 Average Temperature 132 | . 33 25 242 115 Received Heat Transfer 1410 | . 189 363 675 183 Effects 55 | . . . 55 . Shutdowns 10 | . . . 10 . Energy Bleed 4 | . . . 4 . Interference 8 | . . . 8 . Matter Decay 6 | . . . 6 . Short Circuit 7 | . . . 7 . Damage (minor) 9 | . . . 9 . Damage (major) 9 | . . . 9 . Damage (core) 2 | . . . 2 . Siege Activations . | . . . . . Robots Corrupted . | . . . . . Combat Hostiles . | . . . . . Parts Fried . | . . . . . Impact Corruptions . | . . . . . Robots Melted 1 | . . . 1 . Combat Hostiles 1 | . . . 1 . Parts Melted 11 | . . 2 6 3 Heat Transferred 7159 | . . 1444 4340 1375 Parts Sabotaged . | . . . . . Parts Stolen . | . . . . . Parts Stripped . | . . . . . Power Chain Reactions . | . . . . . Alert | -11 -10 -9 -8 -8 ------- Run | Yrd Mat Mat Mat Gar Peak Influence 878 | 5 190 305 365 878 Initial 237 | . 3 10 128 237 Average 153 | 1 73 123 116 547 Maximum Alert Level 3 | . . 1 1 3 Low Security (%) 75 | 100 100 70 89 . Level 1 17 | . . 29 10 40 Level 2 3 | . . . . 30 Level 3 3 | . . . . 29 Level 4 . | . . . . . Level 5 . | . . . . . High Security . | . . . . . Max Security . | . . . . . Squads Dispatched 14 | . 2 3 9 . Investigation 3 | . 1 1 1 . Extermination . | . . . . . Reinforcement 5 | . 1 2 2 . Assault . | . . . . . Garrison 6 | . . . 6 . Intercept . | . . . . . Searches Triggered . | . . . . . Construction Impeded . | . . . . . Haulers Reinforced . | . . . . . Active Scanning Responses . | . . . . . Cargo Convoy Interrupts . | . . . . . Stealth | -11 -10 -9 -8 -8 --------- Run | Yrd Mat Mat Mat Gar Distress Signals 5 | . 1 2 2 . Communications Jammed . | . . . . . Distress Signals . | . . . . . Times Spotted 126 | . 29 40 30 27 Peak Tracking Total 7 | . 5 5 7 5 Tactical Retreats 7 | . . 2 4 1 Traps | -11 -10 -9 -8 -8 ------- Run | Yrd Mat Mat Mat Gar Traps Triggered 8 | . 2 2 2 2 Indirectly . | . . . . . Trap Hack Attempts . | . . . . . Triggered . | . . . . . Disarmed . | . . . . . Reprogrammed . | . . . . . Reused . | . . . . . Traps Extracted . | . . . . . Installed . | . . . . . Triggered . | . . . . . Machines | -11 -10 -9 -8 -8 ---------- Run | Yrd Mat Mat Mat Gar Machines Disabled 4 | . . 2 . 2 Max in Single Turn 1 | . . 1 . 1 Garrison Relay 2 | . . . . 2 Machines Repaired . | . . . . . Machines Dismantled . | . . . . . Machines Sabotaged . | . . . . . Overloaded Fab Kills . | . . . . . Hacking | -11 -10 -9 -8 -8 --------- Run | Yrd Mat Mat Mat Gar Machines Accessed 26 | . 9 9 6 2 Terminals 14 | . 6 4 2 2 Fabricators . | . . . . . Repair Stations 4 | . 1 2 1 . Recycling Units 5 | . 2 2 1 . Scanalyzers 2 | . . 1 1 . Garrison Access 1 | . . . 1 . Total Hacks 61 | . 21 25 12 3 Successful 40 | . 13 17 9 1 Failed 21 | . 8 8 3 2 Catastrophic 3 | . 1 . 2 . Database Lockouts . | . . . . . Manual . | . . . . . Terminals 32 | . 15 10 4 3 Fabricators . | . . . . . Repair Stations 15 | . 3 8 4 . Recycling Units 8 | . 3 4 1 . Scanalyzers 5 | . . 3 2 . Garrison Access 1 | . . . 1 . Terminal Hacks 18 | . 10 6 1 1 Prototype ID Bank 5 | . 3 1 1 . Emergency Access Points 2 | . . 1 . 1 Alert Level 1 | . 1 . . . Unreport Threat 1 | . . 1 . . Dispatch Records 1 | . 1 . . . Maintenance Status 1 | . 1 . . . Transport Status 1 | . . 1 . . Investigation Status 1 | . 1 . . . Hauler Manifests 2 | . 1 1 . . Zone Layout 3 | . 2 1 . . Fabricator Hacks . | . . . . . Repair Station Hacks 11 | . 1 6 4 . Scan Component 6 | . 1 3 2 . Repair 5 | . . 3 2 . Recycling Unit Hacks 5 | . 2 2 1 . Report Inventory 4 | . 2 1 1 . Retrieve Components 1 | . . 1 . . Scanalyzer 5 | . . 3 2 . Insert Component 2 | . . 1 1 . Analyze 3 | . . 2 1 . Garrison Access Hacks 1 | . . . 1 . Unlock Access 1 | . . . 1 . Unauthorized Hacks . | . . . . . Terminals . | . . . . . Fabricators . | . . . . . Repair Stations . | . . . . . Recycling Units . | . . . . . Scanalyzers . | . . . . . Garrison Access . | . . . . . Data Cores Recovered . | . . . . . Used . | . . . . . Hacking Detections 17 | . 6 5 5 1 Full Trace Events 1 | . 1 . . . Feedback Events . | . . . . . Feedback Blocked . | . . . . . Robot Schematics Acquired . | . . . . . Robots Built . | . . . . . Authchips . | . . . . . Time . | . . . . . Total Robot Build Rating . | . . . . . Part Schematics Acquired 2 | . . 1 1 . Parts Built . | . . . . . Authchips . | . . . . . Time . | . . . . . Total Part Build Rating . | . . . . . Parts Repaired 5 | . . 3 2 . Time 130 | . . 78 52 . Parts Recycled . | . . . . . Recycled Matter . | . . . . . Retrieved Matter . | . . . . . Retrieved Components . | . . . . . Parts Scanalyzed 2 | . . 1 1 . Part Schematics Acquired 2 | . . 1 1 . Parts Damaged 1 | . . . 1 . Bothacking | -11 -10 -9 -8 -8 ------------ Run | Yrd Mat Mat Mat Gar Used RIF Installer . | . . . . . Robots Hacked . | . . . . . Non-combat . | . . . . . Combat . | . . . . . Robot Hacks Applied . | . . . . . Relay Couplers Released 9 | . . . . 9 Machine Destruction 9 | . . . . 9 Fabnet Peak Effective % . | . . . . . Robots Rewired . | . . . . . Allies Hacked . | . . . . . Hacks Repelled . | . . . . . Allies | -11 -10 -9 -8 -8 -------- Run | Yrd Mat Mat Mat Gar Total Allies . | . . . . . Largest Group . | . . . . . Highest-Rated Group . | . . . . . Highest-Rated Ally . | . . . . . Total Orders . | . . . . . Ally Attacks . | . . . . . Total Damage . | . . . . . Kills . | . . . . . Allies Corrupted . | . . . . . Allies Melted . | . . . . . Intel | -11 -10 -9 -8 -8 ------- Run | Yrd Mat Mat Mat Gar Robot Analysis Total . | . . . . . Derelict Logs Recovered . | . . . . . Drone Launches . | . . . . . Drone Recoveries . | . . . . . Exploration | -11 -10 -9 -8 -8 ------------- Run | Yrd Mat Mat Mat Gar Turns Passed 6240 | 116 1619 2262 1544 699 Spaces Moved 3059 | 55 833 1212 604 355 Core 15 | 15 . . . . Treads 222 | 40 182 . . . Legs 2664 | . 493 1212 604 355 Wheels 158 | . 158 . . . Hover . | . . . . . Flight . | . . . . . Fastest Speed 50 | 50 100 120 120 123 Average Speed 133 | 130 154 125 125 126 Slowest Speed 330 | 160 260 190 330 330 Overloaded Moves . | . . . . . Propulsion Burnouts . | . . . . . Robots Hopped . | . . . . . Cave-ins Triggered . | . . . . . Exploration Rate (%) 54 | 5 97 87 41 44 Regions Visited 4 Branch Regions . Pre-discovered Areas . | . . . . . Known Exits Taken 1 | . . . 1 . Unknown Exits Taken 3 | 1 1 1 . . Scrap Searched . | . . . . . Spaces Dug . | . . . . . Terrain Destroyed 12 | . . 2 . 10 Melee . | . . . . . Projectile 2 | . . 2 . . AOE 10 | . . . . 10 Terrain Rammed . | . . . . . Walls Destroyed . | . . . . . Machines Disabled . | . . . . . Actions | -11 -10 -9 -8 -8 --------- Run | Yrd Mat Mat Mat Gar Total 4665 | 88 1034 1771 1253 519 Wait 1063 | 8 91 370 495 99 Move 3055 | 54 832 1211 603 355 Hop . | . . . . . Pick Up 95 | 12 18 30 28 7 Fast Attach 14 | . 1 12 1 . Attach 52 | 6 6 11 22 7 Detach 2 | . . . 1 1 Swap 18 | . 5 6 3 4 Drop 64 | 1 7 32 22 2 Fire 296 | 7 74 99 75 41 Melee . | . . . . . Ram . | . . . . . Kick 3 | . . . 3 . Crush . | . . . . . Escape Stasis 3 | . . . . 3 Rewire . | . . . . . Trap . | . . . . . Miscellaneous . | . . . . . Route ------- -11/Scrapyard -10/Materials (discovered 5 exits: *Mat x3 / [*Min x2]) -9/Materials (discovered 6 exits: *Mat x3 / [*Min] / [*Sto x2]) -8/Materials -8/Garrison (discovered 1 exit: [*Fac]) History --------- Turn | Location | Event 9 | -11/Scrapyard | Discovered new exit (range 15) 117 | -11/Scrapyard | Entered Materials 314 | -10/Materials | Build established: Mutant 329 | -10/Materials | Discovered new exit (range 14) 756 | -10/Materials | Discovered new exit (range 14) 1195 | -10/Materials | Build established: Scavenger-Mutant 1239 | -10/Materials | Discovered new exit (range 10) 1346 | -10/Materials | Discovered new exit (range 4) 1437 | -10/Materials | Core integrity fell below 50% 1572 | -10/Materials | Discovered new exit (range 4) 1736 | -10/Materials | Entered another Materials area 1736 | -9/Materials | Evolved 2 slots: Propulsion x2 1985 | -9/Materials | Discovered new exit (range 15) 2021 | -9/Materials | Discovered new exit (range 9) 2471 | -9/Materials | Repaired Aluminum Leg 2514 | -9/Materials | Discovered new exit (range 6) 2981 | -9/Materials | Discovered new exit (range 15) 3475 | -9/Materials | Discovered new exit (range 4) 3585 | -9/Materials | Repaired Aluminum Leg 3612 | -9/Materials | Repaired Aluminum Leg 3889 | -9/Materials | Discovered new exit (range 16) 3998 | -9/Materials | Entered another Materials area 3998 | -8/Materials | Evolved 2 slots: Utility x2 4201 | -8/Materials | Repaired Sensor Array 4229 | -8/Materials | Repaired Lgt. Armor Plating 4859 | -8/Materials | Build established: Mutant 4951 | -8/Materials | Garrison activated, responded to threat 4967 | -8/Materials | Core integrity fell below 50% 5336 | -8/Materials | Garrison activated, responded to threat 5540 | -8/Materials | Identified exit to Garrison 5542 | -8/Materials | Entered Garrison 5570 | -8/Garrison | Triggered checkpoint 5587 | -8/Garrison | Garrison Relay disabled 5810 | -8/Garrison | Triggered checkpoint 5920 | -8/Garrison | Discovered new exit (range 10) 5970 | -8/Garrison | Triggered checkpoint 5970 | -8/Garrison | Build established: Scavenger-Mutant 6066 | -8/Garrison | Garrison Relay disabled 6144 | -8/Garrison | Triggered checkpoint 6158 | -8/Garrison | Triggered checkpoint 6161 | -8/Garrison | Core integrity fell below 20% 6210 | -8/Garrison | Triggered checkpoint 6219 | -8/Garrison | Spotted B-75 Beast 6241 | -8/Garrison | Destroyed by B-75 Beast with Magnetic Acceleration Cannon Last Messages --------------- relay unit. 06066_ Relay Coupler [Swarmer] tumbles out of relay unit. 06071_ Acquired Relay Coupler [Swarmer]. 06144_ Beams of light sweep through the air. An alarm sounds. 06160_ S-10 Pest destroyed. 06166_ Field Laser destroyed. 06166_ S-10 Pest destroyed. 06188_ Acquired 10 matter. 06216_ Titanium Leg severed. 06216_ Blade Saw melted. 06216_ C-17 Slicer destroyed. 06217_ Aluminum Leg severed. 06220_ C-17 Slicer destroyed. 06229_ Knocked back. 06229_ Aluminum Leg destroyed. 06232_ C-17 Slicer destroyed. 06232_ Titanium Leg destroyed. 06241_ Gatling Laser destroyed. Map ----- +----------------------------------------------------+ | ?# #???????????????????# #???? ## ####### #? | | ?# #???????????????????# #####+## #?????# #? | | ?### #???????????????????# ## ##= #?????# #? | | ???# ###????????????????## ## ## #?????# #? | | ???# #"#????????????????# [! ####### #? | | ???# !"#????????????????+ + #? | | ???# !#????????????????# #? | | ???# !"#????????????????# ## # #########? | | ???#^#"#??????????????### ## ## ###???????? | | ???#####??????????????# #???????? | | ??????????????????????# [#???????? | | ??????????????????????# #???????? | | ??????????????????????# ^ = #???????? | | ??????????????????????### ## ## ###???????? | | ????????????????????????# ## ##^^^#?????????? | | ????????????????????????+ = ^^ #?????????? | | ????????????????????????+ [=% +?????????? | | ????????????????????????# %%* #?????????? | | ????????????????????????# ## ## #?????????? | | ????????????????????????# ##%= #?? #?????????? | | ????????????????????????# #######??? #?????????? | | ????????????????????????+ #??????????#?????????? | | ???????????????????????## ##???????????????????? | | ??????????????????????## #???????????????????? | | ??????????????????????# % #?????????????+??????? | | ???####++#######++##### @ #????????????????????? | | ??? d #????????????????????? | | ??? ]BB ] #????????????????????? | | ??? /iBB =% #????????????++?????? | | ????????########=*### ### ###???????????????????? | | ???????????????#*%#?##??# ##?????????????????????? | | ???????????????#! ?????# #???????????????++?????? | | ???????????????# ?+??? #??????????????????????? | | ???????????????# ????# #??????????????????????? | | ???????????????# ##????? #??????????????????????? | | ???????????????+ #?????? #??????????????????????? | | ???????????????+ #?????? ???????????????????????? | | ???????????????# #??????"???????????????????????? | | ???????????????# ???????#???????????????????????? | | ???????????????# ???????????????????????????????? | | ???????????????# ???????????????????????????????? | | ???????????????# ???????????????????????????????? | | ???????????????? ???????????????????????????????? | | ???????????????? ???????????????????????????????? | | ???????????????? ???????????????????????????????? | | ?????????????????????????????????????????????????? | | ?????????????????????????????????????????????????? | | ?????????????????????????????????????????????????? | | ??????????????+??????????????????????????????????? | | ??????????????????????+?+????????????????????????? | +----------------------------------------------------+ Best States ------------- Heat Dissipation 59 Energy Generation 14 Energy Capacity 280 Matter Stores 300 Matter Capacity 300 Sight Range 16 Robot Scan Range 14 Terrain Scan Range 14 Terrain Scan Density 10 Jamming Range 12 Armor Coverage 150 Evasion (%) 55 Recoil Reduction 2 Offensive Hacking 10 Item Schematics ----------------- Cld. Ion Engine | -9/Materials | Scanalyzed Titanium Leg | -8/Materials | Scanalyzed Robot Schematics ------------------ None Fabricated ------------ Nothing Alien Tech Used ----------------- None Achievements -------------- Everything Is Under Control Challenges ------------ None Game ------ Seed ForcePersonalMace Manual? 0 Play Time 02:07:04 Cumulative 34.5 hours Start 2024.08.17 @ 16:49:17 End 2024.08.17 @ 19:43:17 Sessions 1 Manual Loads 0 Difficulty Rogue Special Mode None Game No. 13 Rogue 13 Adventurer 0 Explorer 0 Win Type - Total 0 Types 0/0/0/0/0/0/0/0/0 Lore% 5 Gallery% 13 Achievement% 14 Wizard Run 0 Options --------- Layout 1 ASCII 0 Keyboard 0 Movement Numpad Keybinds 0 Fullscreen 1 Font 24/Smallcaps Map View 50x35 Zoom Use 0% Tactical HUD 1 Map Filters NONE Filters NONE Steam 1 RUN: 10abef4e-b3f7-4275-a005-879f353ddc9d